fUSD/lending_fUSD_20250823
["ID","MTS","AMOUNT","RATE_DAILY","PERIOD"]
[380997311,1755930725754,-1129.74,0.00015342,2]
[380997312,1755930725764,-400.0,0.00015342,2]
[380997313,1755930725773,-1172.0,0.00015342,2]
[380997314,1755930725783,-740.0,0.00015342,2]
[380997315,1755930725794,-831.91,0.00015342,2]
[380997316,1755930725804,-400.0,0.00015342,2]
[380997317,1755930725814,-778.45,0.00015342,2]
[380997318,1755930725823,-419.05,0.00015342,2]
[380997319,1755930725833,-400.0,0.00015342,2]
[380997320,1755930725843,-1047.67,0.00015342,2]
[380997321,1755930725853,-506.64683589,0.00015342,2]
[380997322,1755930725863,-407.06,0.00015342,2]
[380997323,1755930725872,-400.0,0.00015342,2]
[380997324,1755930725882,-640.87,0.00015342,2]
[380997325,1755930725892,-400.0,0.00015342,2]
[380997326,1755930725902,-406.8,0.00015342,2]
[380997327,1755930725912,-400.0,0.00015342,2]
[380997328,1755930725922,-620.0,0.00015342,2]
[380997329,1755930725935,-566.33,0.00015342,2]
[380997330,1755930725945,-428.51,0.00015342,2]
[380997331,1755930725955,-400.0,0.00015342,2]
[380997332,1755930725967,-1110.17,0.00015342,2]
[380997333,1755930725976,-643.19,0.00015342,2]
[380997334,1755930725986,-400.0,0.00015342,2]
[380997335,1755930725996,-1209.16,0.00015342,2]
[380997336,1755930726007,-1114.49,0.00015342,2]
[380997337,1755930726017,-716.98,0.00015342,2]
[380997338,1755930726027,-458.89,0.00015342,2]
[380997339,1755930726037,-286.97402002,0.00015342,2]
[380997340,1755930726047,-400.0,0.00015342,2]
[380997341,1755930726055,-626.95,0.00015342,2]
[380997342,1755930726067,-932.5,0.00015342,2]
[380997343,1755930726078,-893.99,0.00015342,2]
[380997344,1755930726088,-400.0,0.00015342,2]
[380997345,1755930726099,-640.9,0.00015342,2]
[380997346,1755930726108,-400.0,0.00015342,2]
[380997347,1755930726118,-1077.14,0.00015342,2]
[380997348,1755930726127,-400.0,0.00015342,2]
[380997349,1755930726137,-1129.31,0.00015342,2]
[380997350,1755930726146,-897.5,0.00015342,2]
[380997351,1755930726155,-928.82,0.00015342,2]
[380997352,1755930726169,-985.74,0.00015342,2]
[380997353,1755930726179,-584.91,0.00015342,2]
[380997354,1755930726189,-672.3,0.00015342,2]
[380997355,1755930726199,-400.0,0.00015342,2]
[380997356,1755930726209,-681.69,0.00015342,2]
[380997357,1755930726218,-486.38,0.00015342,2]
[380997358,1755930726228,-482.01,0.00015342,2]
[380997359,1755930726237,-801.05,0.00015342,2]
[380997360,1755930726246,-705.27,0.00015342,2]
[380997361,1755930726255,-649.64,0.00015342,2]
[380997362,1755930726265,-611.51,0.00015342,2]
[380997363,1755930726274,-504.22,0.00015342,2]
[380997364,1755930726285,-475.16,0.00015342,2]
[380997365,1755930726298,-400.0,0.00015342,2]
[380997366,1755930726309,-753.61,0.00015342,2]
[380997367,1755930726318,-810.53,0.00015342,2]
[380997368,1755930726329,-400.0,0.00015342,2]
[380997369,1755930726339,-667.17,0.00015342,2]
[380997370,1755930726348,-2291.05,0.00015342,2]
[380997371,1755930726358,-446.02,0.00015342,2]
[380997372,1755930726371,-400.0,0.00015342,2]
[380997373,1755930726381,-616.47,0.00015342,2]
[380997374,1755930726391,-1407.45,0.00015342,2]
[380997375,1755930726403,-696.36,0.00015342,2]
[380997376,1755930726413,-508.92,0.00015342,2]
[380997377,1755930726424,-400.0,0.00015342,2]
[380997378,1755930726435,-881.54,0.00015342,2]
[380997379,1755930726445,-855.52,0.00015342,2]
[380997380,1755930726456,-400.0,0.00015342,2]
[380997381,1755930726466,-400.0,0.00015342,2]
[380997382,1755930726476,-400.0,0.00015342,2]
[380997383,1755930726486,-1014.43,0.00015342,2]
[380997384,1755930726495,-1284.58,0.00015342,2]
[380997385,1755930726505,-866.11,0.00015342,2]
[380997386,1755930726515,-440.11,0.00015342,2]
[380997387,1755930726524,-729.3,0.00015342,2]
[380997388,1755930726534,-400.0,0.00015342,2]
[380997389,1755930726543,-400.0,0.00015342,2]
[380997390,1755930726553,-477.59,0.00015342,2]
[380997391,1755930726562,-520.35,0.00015342,2]
[380997392,1755930726572,-1238.33,0.00015342,2]
[380997393,1755930726877,-400.0,0.00015342,2]
[380997394,1755930726896,-656.46,0.00015342,2]
[380997395,1755930726907,-400.0,0.00015342,2]
[380997396,1755930726918,-772.76,0.00015342,2]
[380997397,1755930726928,-400.0,0.00015342,2]
[380997398,1755930726938,-892.57,0.00015342,2]
[380997399,1755930726949,-400.0,0.00015342,2]
[380997400,1755930726959,-400.0,0.00015342,2]
[380997401,1755930726969,-400.0,0.00015342,2]
[380997402,1755930726979,-600.2,0.00015342,2]
[380997403,1755930726989,-400.0,0.00015342,2]
[380997404,1755930726999,-602.88,0.00015342,2]
[380997405,1755930727009,-590.02,0.00015342,2]
[380997406,1755930727019,-1076.13,0.00015342,2]
[380997407,1755930727029,-400.0,0.00015342,2]
[380997408,1755930727039,-736.8,0.00015342,2]
[380997409,1755930727048,-1141.99,0.00015342,2]
[380997410,1755930727058,-250.0,0.00015342,2]
[380997411,1755930727068,-451.08,0.00015342,2]
[380997412,1755930727077,-400.0,0.00015342,2]
[380997413,1755930727087,-562.1,0.00015342,2]
[380997414,1755930727097,-573.5,0.00015342,2]
[380997415,1755930727107,-821.55,0.00015342,2]
[380997416,1755930727116,-1096.32,0.00015342,2]
[380997417,1755930727126,-624.58,0.00015342,2]
[380997418,1755930727136,-1117.58,0.00015342,2]
[380997419,1755930727146,-1352.51,0.00015342,2]
[380997420,1755930727156,-1337.58,0.00015342,2]
[380997421,1755930727166,-1340.25,0.00015342,2]
[380997422,1755930727176,-930.86,0.00015342,2]
[380997423,1755930727186,-463.18,0.00015342,2]
[380997424,1755930727196,-491.34,0.00015342,2]
[380997425,1755930727206,-400.0,0.00015342,2]
[380997426,1755930727215,-546.89,0.00015342,2]
[380997427,1755930727230,-871.98,0.00015342,2]
[380997428,1755930727241,-734.61,0.00015342,2]
[380997429,1755930727253,-1287.92,0.00015342,2]
[380997430,1755930727264,-944.89,0.00015342,2]
[380997431,1755930727275,-1082.98,0.00015342,2]
[380997432,1755930727286,-400.0,0.00015342,2]
[380997433,1755930727300,-400.0,0.00015342,2]
[380997434,1755930727310,-493.59,0.00015342,2]
[380997435,1755930727321,-411.6,0.00015342,2]
[380997436,1755930727332,-802.48,0.00015342,2]
[380997437,1755930727342,-794.21,0.00015342,2]
[380997438,1755930727353,-445.1,0.00015342,2]
[380997439,1755930727365,-581.6,0.00015342,2]
[380997440,1755930727376,-1006.63,0.00015342,2]
[380997441,1755930727386,-548.11,0.00015342,2]
[380997442,1755930727397,-1523.05,0.00015342,2]
[380997443,1755930727407,-400.0,0.00015342,2]
[380997444,1755930727418,-454.19,0.00015342,2]
[380997445,1755930727429,-567.41,0.00015342,2]
[380997446,1755930727441,-540.12,0.00015342,2]
[380997447,1755930727452,-541.18,0.00015342,2]
[380997448,1755930727462,-760.57,0.00015342,2]
[380997449,1755930727473,-1038.57,0.00015342,2]
[380997450,1755930727483,-1120.03,0.00015342,2]
[380997451,1755930727493,-400.0,0.00015342,2]
[380997452,1755930727503,-1113.52,0.00015342,2]
[380997453,1755930727514,-584.57,0.00015342,2]
[380997454,1755930727524,-400.0,0.00015342,2]
[380997455,1755930727534,-400.0,0.00015342,2]
[380997456,1755930727545,-684.51,0.00015342,2]
[380997457,1755930727555,-904.27,0.00015342,2]
[380997458,1755930727566,-660.57,0.00015342,2]
[380997459,1755930727576,-871.26,0.00015342,2]
[380997460,1755930727586,-923.07,0.00015342,2]
[380997461,1755930727596,-1031.27,0.00015342,2]
[380997462,1755930727606,-986.27,0.00015342,2]
[380997463,1755930727617,-1872.47,0.00015342,2]
[380997464,1755930727627,-994.88,0.00015342,2]
[380997465,1755930727637,-400.0,0.00015342,2]
[380997466,1755930727648,-768.72,0.00015342,2]
[380997467,1755930727658,-1031.23,0.00015342,2]
[380997468,1755930727669,-571.58,0.00015342,2]
[380997469,1755930727679,-400.0,0.00015342,2]
[380997470,1755930727690,-775.88,0.00015342,2]
[380997471,1755930727701,-400.0,0.00015342,2]
[380997472,1755930727711,-1016.95,0.00015342,2]
[380997473,1755930727722,-647.53,0.00015342,2]
[380997474,1755930727732,-605.11,0.00015342,2]
[380997475,1755930727742,-908.13,0.00015342,2]
[380997476,1755930727752,-405.51,0.00015342,2]
[380997477,1755930727763,-639.89,0.00015342,2]
[380997478,1755930727772,-402.71,0.00015342,2]
[380997479,1755930727782,-999.76,0.00015342,2]
[380997480,1755930727792,-400.0,0.00015342,2]
[380997481,1755930727803,-968.0,0.00015342,2]
[380997482,1755930727813,-834.9,0.00015342,2]
[380997483,1755930727823,-838.11,0.00015342,2]
[380997484,1755930727833,-1449.64,0.00015342,2]
[380997485,1755930727844,-451.27630117,0.00015342,2]
[380997486,1755930727855,-873.94,0.00015342,2]
[380997487,1755930727866,-764.67,0.00015342,2]
[380997488,1755930727876,-839.44,0.00015342,2]
[380997489,1755930727886,-400.0,0.00015342,2]
[380997490,1755930727896,-402.87,0.00015342,2]
[380997491,1755930727906,-400.0,0.00015342,2]
[380997492,1755930727917,-747.31,0.00015342,2]
[380997493,1755930727927,-514.65,0.00015342,2]
[380997494,1755930727938,-2296.87,0.00015342,2]
[380997495,1755930727948,-496.75,0.00015342,2]
[380997496,1755930727958,-400.0,0.00015342,2]
[380997497,1755930727968,-400.0,0.00015342,2]
[380997498,1755930727978,-1231.43,0.00015342,2]
[380997499,1755930727988,-400.0,0.00015342,2]
[380997500,1755930727998,-1067.81,0.00015342,2]
[380997501,1755930728009,-400.0,0.00015342,2]
[380997502,1755930728024,-1143.89,0.00015342,2]
[380997503,1755930728035,-400.0,0.00015342,2]
[380997504,1755930728044,-1043.98,0.00015342,2]
[380997505,1755930728054,-1047.41,0.00015342,2]
[380997506,1755930728064,-621.01,0.00015342,2]
[380997507,1755930728074,-688.55,0.00015342,2]
[380997508,1755930728084,-2024.11,0.00015342,2]
[380997509,1755930728094,-400.0,0.00015342,2]
[380997510,1755930728103,-400.0,0.00015342,2]
[380997511,1755930728114,-471.83,0.00015342,2]
[380997512,1755930728123,-1569.0,0.00015342,2]
[380997513,1755930728132,-702.78,0.00015342,2]
[380997514,1755930728142,-1557.8,0.00015342,2]
[380997515,1755930728152,-400.0,0.00015342,2]
[380997516,1755930728162,-562.49,0.00015342,2]
[380997517,1755930728172,-400.0,0.00015342,2]
[380997518,1755930728181,-1015.96,0.00015342,2]
[380997519,1755930728192,-415.83,0.00015342,2]
[380997520,1755930728202,-1619.12,0.00015342,2]
[380997521,1755930728212,-704.74,0.00015342,2]
[380997522,1755930728222,-873.77,0.00015342,2]
[380997523,1755930728232,-603.17,0.00015342,2]
[380997524,1755930728242,-1020.89,0.00015342,2]
[380997525,1755930728252,-718.17,0.00015342,2]
[380997526,1755930728262,-1397.26,0.00015342,2]
[380997527,1755930728272,-779.46,0.00015342,2]
[380997528,1755930728282,-659.51,0.00015342,2]
[380997529,1755930728295,-796.66,0.00015342,2]
[380997530,1755930728304,-873.13,0.00015342,2]
[380997531,1755930728314,-400.0,0.00015342,2]
[380997532,1755930728323,-1242.26,0.00015342,2]
[380997533,1755930728334,-535.86,0.00015342,2]
[380997534,1755930728344,-400.0,0.00015342,2]
[380997535,1755930728353,-607.83,0.00015342,2]
[380997536,1755930728364,-400.0,0.00015342,2]
[380997537,1755930728374,-400.0,0.00015342,2]
[380997538,1755930728384,-734.36,0.00015342,2]
[380997539,1755930728394,-643.58,0.00015342,2]
[380997540,1755930728404,-593.25,0.00015342,2]
[380997541,1755930728414,-1009.14,0.00015342,2]
[380997542,1755930728425,-590.01,0.00015342,2]
[380997543,1755930728435,-566.68,0.00015342,2]
[380997544,1755930728445,-686.64,0.00015342,2]
[380997545,1755930728454,-821.45,0.00015342,2]
[380997546,1755930728464,-739.95,0.00015342,2]
[380997547,1755930728474,-752.12,0.00015342,2]
[380997548,1755930728484,-1020.13,0.00015342,2]
[380997549,1755930728494,-567.76,0.00015342,2]
[380997550,1755930728504,-1008.59,0.00015342,2]
[380997551,1755930728514,-749.2,0.00015342,2]
[380997552,1755930728524,-782.78,0.00015342,2]
[380997553,1755930728534,-761.24,0.00015342,2]
[380997554,1755930728544,-676.25,0.00015342,2]
[380997555,1755930728553,-1360.81,0.00015342,2]
[380997556,1755930728563,-696.26,0.00015342,2]
[380997557,1755930728573,-512.32,0.00015342,2]
[380997558,1755930728582,-382.35835955,0.00015342,2]
[380997559,1755930728591,-1871.16,0.00015342,2]
[380997560,1755930728601,-408.99,0.00015342,2]
[380997561,1755930728611,-491.72,0.00015342,2]
[380997562,1755930728621,-638.4,0.00015342,2]
[380997563,1755930728630,-633.69,0.00015342,2]
[380997564,1755930728640,-1307.02,0.00015342,2]
[380997565,1755930728650,-807.4,0.00015342,2]
[380997566,1755930728662,-515.86,0.00015342,2]
[380997567,1755930728671,-459.89,0.00015342,2]
[380997568,1755930728681,-718.67,0.00015342,2]
[380997569,1755930728692,-553.1,0.00015342,2]
[380997570,1755930728701,-620.72,0.00015342,2]
[380997571,1755930728711,-928.31,0.00015342,2]
[380997572,1755930728720,-2900.39,0.00015342,2]
[380997573,1755930728730,-400.0,0.00015342,2]
[380997574,1755930728739,-405.54,0.00015342,2]
[380997575,1755930728749,-519.55173227,0.00015342,2]
[380997576,1755930728759,-591.71,0.00015342,2]
[380997577,1755930728768,-1259.98,0.00015342,2]
[380997578,1755930728778,-494.42,0.00015342,2]
[380997579,1755930728787,-992.94,0.00015342,2]
[380997580,1755930728797,-400.0,0.00015342,2]
[380997581,1755930728806,-734.9,0.00015342,2]
[380997582,1755930728816,-810.57,0.00015342,2]
[380997583,1755930728827,-709.79,0.00015342,2]
[380997584,1755930728837,-931.49,0.00015342,2]
[380997585,1755930728846,-827.71,0.00015342,2]
[380997586,1755930728856,-567.95,0.00015342,2]
[380997587,1755930728866,-624.47,0.00015342,2]
[380997588,1755930728876,-400.0,0.00015342,2]
[380997589,1755930728885,-3127.36,0.00015342,2]
[380997590,1755930728895,-732.26,0.00015342,2]
[380997591,1755930728905,-400.0,0.00015342,2]
[380997592,1755930728914,-400.0,0.00015342,2]
[380997593,1755930728924,-427.22,0.00015342,2]
[380997594,1755930728934,-400.0,0.00015342,2]
[380997595,1755930728943,-1299.81,0.00015342,2]
[380997596,1755930728953,-400.0,0.00015342,2]
[380997597,1755930728962,-400.0,0.00015342,2]
[380997598,1755930728971,-400.0,0.00015342,2]
[380997599,1755930728981,-400.0,0.00015342,2]
[380997600,1755930728990,-879.49,0.00015342,2]
[380997601,1755930729000,-400.0,0.00015342,2]
[380997602,1755930729009,-762.43,0.00015342,2]
[380997603,1755930729018,-992.2,0.00015342,2]
[380997604,1755930729027,-481.7,0.00015342,2]
[380997605,1755930729037,-578.22,0.00015342,2]
[380997606,1755930729047,-542.83,0.00015342,2]
[380997607,1755930729056,-400.0,0.00015342,2]
[380997608,1755930729065,-546.74,0.00015342,2]
[380997609,1755930729075,-717.03,0.00015342,2]
[380997610,1755930729085,-400.0,0.00015342,2]
[380997611,1755930729094,-401.89,0.00015342,2]
[380997612,1755930729103,-459.83,0.00015342,2]
[380997613,1755930729113,-593.29,0.00015342,2]
[380997614,1755930729122,-552.32,0.00015342,2]
[380997615,1755930729498,-400.0,0.00015342,2]
[380997616,1755930729512,-1000.0,0.00015342,2]
[380997617,1755930729522,-1114.08,0.00015342,2]
[380997618,1755930729532,-300.0,0.00015343,2]
[380997619,1755930729543,-200.0,0.00015351,2]
[380997620,1755930729552,-200.0,0.00015351,2]
[380997621,1755930729562,-4609.0,0.00015372,2]
[380997622,1755930729572,-733.0,0.00015377,2]
[380997623,1755930729581,-696.0,0.00015377,2]
[380997624,1755930729591,-736.0,0.00015377,2]
[380997625,1755930729601,-16370.31930325,0.000154,2]
[380997626,1755930729610,-497.86348787,0.000154,2]
[380997627,1755930729620,-80000.0,0.000154,5]
[380997628,1755930729630,-150.0,0.000154,3]
[380997629,1755930729641,-150.0,0.00015414,2]
[380997630,1755930729650,-150.0,0.00015443,2]
[380997631,1755930729660,-150.94240011,0.00015473,2]
[380997632,1755930729670,-150.0,0.000155,2]
[380997633,1755930729680,-200.0,0.00015505,2]
[380997634,1755930729691,-200.0,0.00015505,2]
[380997635,1755930729700,-441.0,0.0001552,2]
[380997636,1755930729710,-150.0,0.00015558,2]
[380997637,1755930729719,-151.0,0.00015592,2]
[380997638,1755930729729,-1005.74033301,0.000156,2]
[380997639,1755930729739,-539.42,0.00015607,2]
[380997640,1755930729749,-1085.0,0.00015607,2]
[380997641,1755930729758,-150.0,0.00015615,2]
[380997642,1755930729768,-400.0,0.00015616,2]
[380997643,1755930729778,-400.0,0.00015616,2]
[380997644,1755930729788,-400.0,0.00015616,2]
[380997645,1755930729798,-400.0,0.00015616,2]
[380997646,1755930729808,-400.0,0.00015616,2]
[380997647,1755930729817,-400.0,0.00015616,2]
[380997648,1755930729827,-400.0,0.00015616,2]
[380997649,1755930729837,-582.01,0.00015616,2]
[380997650,1755930729847,-514.56,0.00015616,2]
[380997651,1755930729857,-704.41,0.00015616,2]
[380997652,1755930729867,-1531.46,0.00015616,2]
[380997653,1755930729877,-400.0,0.00015616,2]
[380997654,1755930729886,-400.0,0.00015616,2]
[380997655,1755930729896,-554.63,0.00015616,2]
[380997656,1755930729906,-877.84,0.00015616,2]
[380997657,1755930729915,-643.74,0.00015616,2]
[380997658,1755930729925,-400.0,0.00015616,2]
[380997659,1755930729935,-400.0,0.00015616,2]
[380997660,1755930729946,-400.0,0.00015616,2]
[380997661,1755930729956,-400.0,0.00015616,2]
[380997662,1755930729966,-400.0,0.00015616,2]
[380997663,1755930729975,-572.24,0.00015616,2]
[380997664,1755930729986,-400.0,0.00015616,2]
[380997665,1755930729995,-400.0,0.00015616,2]
[380997666,1755930730005,-400.0,0.00015616,2]
[380997667,1755930730014,-400.0,0.00015616,2]
[380997668,1755930730024,-743.91,0.00015616,2]
[380997669,1755930730034,-526.46,0.00015616,2]
[380997670,1755930730043,-400.0,0.00015616,2]
[380997671,1755930730053,-400.0,0.00015616,2]
[380997672,1755930730063,-400.0,0.00015616,2]
[380997673,1755930730073,-400.0,0.00015616,2]
[380997674,1755930730082,-400.0,0.00015616,2]
[380997675,1755930730093,-400.0,0.00015616,2]
[380997676,1755930730102,-400.0,0.00015616,2]
[380997677,1755930730112,-749.52,0.00015616,2]
[380997678,1755930730122,-400.0,0.00015616,2]
[380997679,1755930730132,-400.0,0.00015616,2]
[380997680,1755930730142,-540.59,0.00015616,2]
[380997681,1755930730151,-410.49,0.00015616,2]
[380997682,1755930730161,-493.14,0.00015616,2]
[380997683,1755930730170,-920.84,0.00015616,2]
[380997684,1755930730180,-566.63,0.00015616,2]
[380997685,1755930730191,-400.0,0.00015616,2]
[380997686,1755930730202,-432.17,0.00015616,2]
[380997687,1755930730211,-400.0,0.00015616,2]
[380997688,1755930730221,-400.0,0.00015616,2]
[380997689,1755930730234,-740.84,0.00015616,2]
[380997690,1755930730255,-783.8,0.00015616,2]
[380997691,1755930730265,-604.31,0.00015616,2]
[380997692,1755930730275,-1133.06,0.00015616,2]
[380997693,1755930730285,-400.0,0.00015616,2]
[380997694,1755930730298,-517.07,0.00015616,2]
[380997695,1755930730309,-495.74,0.00015616,2]
[380997696,1755930730319,-400.0,0.00015616,2]
[380997697,1755930730328,-413.56,0.00015616,2]
[380997698,1755930730338,-400.0,0.00015616,2]
[380997699,1755930730348,-400.0,0.00015616,2]
[380997700,1755930730358,-332.4621935,0.00015616,2]
[380997701,1755930730369,-400.0,0.00015616,2]
[380997702,1755930730380,-696.19,0.00015616,2]
[380997703,1755930730390,-400.0,0.00015616,2]
[380997704,1755930730399,-448.63,0.00015616,2]
[380997705,1755930730409,-409.77,0.00015616,2]
[380997706,1755930730419,-400.0,0.00015616,2]
[380997707,1755930730428,-400.0,0.00015616,2]
[380997708,1755930730438,-400.0,0.00015616,2]
[380997709,1755930730447,-400.0,0.00015616,2]
[380997710,1755930730457,-741.34,0.00015616,2]
[380997711,1755930730467,-654.73,0.00015616,2]
[380997712,1755930730477,-412.9,0.00015616,2]
[380997713,1755930730486,-773.01,0.00015616,2]
[380997714,1755930730496,-400.0,0.00015616,2]
[380997715,1755930730505,-400.0,0.00015616,2]
[380997716,1755930730515,-428.59,0.00015616,2]
[380997717,1755930730524,-400.0,0.00015616,2]
[380997718,1755930730534,-439.05,0.00015616,2]
[380997719,1755930730543,-407.58533866,0.00015616,2]
[380997720,1755930730553,-805.82,0.00015616,2]
[380997721,1755930730562,-400.0,0.00015616,2]
[380997722,1755930730571,-400.0,0.00015616,2]
[380997723,1755930730581,-407.07,0.00015616,2]
[380997724,1755930730591,-733.47,0.00015616,2]
[380997725,1755930730600,-400.0,0.00015616,2]
[380997726,1755930730610,-400.28,0.00015616,2]
[380997727,1755930730619,-432.84,0.00015616,2]
[380997728,1755930730629,-834.46,0.00015616,2]
[380997729,1755930730639,-400.0,0.00015616,2]
[380997730,1755930730648,-400.0,0.00015616,2]
[380997731,1755930730658,-400.0,0.00015616,2]
[380997732,1755930730667,-728.67,0.00015616,2]
[380997733,1755930730677,-400.0,0.00015616,2]
[380997734,1755930730688,-400.0,0.00015616,2]
[380997735,1755930730698,-400.0,0.00015616,2]
[380997736,1755930730707,-491.05,0.00015616,2]
[380997737,1755930730717,-482.83,0.00015616,2]
[380997738,1755930730727,-426.08,0.00015616,2]
[380997739,1755930730737,-718.23,0.00015616,2]
[380997740,1755930730748,-400.0,0.00015616,2]
[380997741,1755930730757,-400.0,0.00015616,2]
[380997742,1755930730767,-414.75,0.00015616,2]
[380997743,1755930730776,-730.88,0.00015616,2]
[380997744,1755930730786,-525.23,0.00015616,2]
[380997745,1755930730795,-400.0,0.00015616,2]
[380997746,1755930730805,-400.0,0.00015616,2]
[380997747,1755930730814,-656.34,0.00015616,2]
[380997748,1755930730824,-861.42,0.00015616,2]
[380997749,1755930730833,-400.0,0.00015616,2]
[380997750,1755930730843,-423.34887375,0.00015616,2]
[380997751,1755930730852,-628.73,0.00015616,2]
[380997752,1755930730861,-775.38,0.00015616,2]
[380997753,1755930730871,-400.0,0.00015616,2]
[380997754,1755930730880,-400.0,0.00015616,2]
[380997755,1755930730890,-404.23,0.00015616,2]
[380997756,1755930730899,-713.07,0.00015616,2]
[380997757,1755930730909,-452.56,0.00015616,2]
[380997758,1755930730919,-674.32,0.00015616,2]
[380997759,1755930730928,-400.0,0.00015616,2]
[380997760,1755930730938,-693.74,0.00015616,2]
[380997761,1755930730947,-400.0,0.00015616,2]
[380997762,1755930730958,-460.3,0.00015616,2]
[380997763,1755930730967,-400.0,0.00015616,2]
[380997764,1755930730977,-400.0,0.00015616,2]
[380997765,1755930730986,-400.0,0.00015616,2]
[380997766,1755930730996,-400.0,0.00015616,2]
[380997767,1755930731005,-400.0,0.00015616,2]
[380997768,1755930731015,-400.0,0.00015616,2]
[380997769,1755930731024,-651.66,0.00015616,2]
[380997770,1755930731034,-490.04,0.00015616,2]
[380997771,1755930731044,-423.85,0.00015616,2]
[380997772,1755930731054,-597.2,0.00015616,2]
[380997773,1755930731063,-655.44,0.00015616,2]
[380997774,1755930731072,-400.0,0.00015616,2]
[380997775,1755930731082,-400.0,0.00015616,2]
[380997776,1755930731091,-1022.82,0.00015616,2]
[380997777,1755930731101,-400.0,0.00015616,2]
[380997778,1755930731111,-470.46,0.00015616,2]
[380997779,1755930731120,-400.0,0.00015616,2]
[380997780,1755930731130,-444.53,0.00015616,2]
[380997781,1755930731139,-400.0,0.00015616,2]
[380997782,1755930731150,-400.0,0.00015616,2]
[380997783,1755930731160,-451.36,0.00015616,2]
[380997784,1755930731169,-649.5,0.00015616,2]
[380997785,1755930731179,-400.0,0.00015616,2]
[380997786,1755930731190,-636.13,0.00015616,2]
[380997787,1755930731199,-400.0,0.00015616,2]
[380997788,1755930731209,-480.27,0.00015616,2]
[380997789,1755930731218,-400.0,0.00015616,2]
[380997790,1755930731228,-517.49,0.00015616,2]
[380997791,1755930731237,-600.17,0.00015616,2]
[380997792,1755930731247,-466.17,0.00015616,2]
[380997793,1755930731257,-540.76,0.00015616,2]
[380997794,1755930731266,-400.0,0.00015616,2]
[380997795,1755930731275,-753.31,0.00015616,2]
[380997796,1755930731286,-404.06,0.00015616,2]
[380997797,1755930731299,-597.64,0.00015616,2]
[380997798,1755930731308,-458.82,0.00015616,2]
[380997799,1755930731318,-404.41,0.00015616,2]
[380997800,1755930731328,-400.0,0.00015616,2]
[380997801,1755930731337,-420.73,0.00015616,2]
[380997802,1755930731347,-400.0,0.00015616,2]
[380997803,1755930731357,-400.0,0.00015616,2]
[380997804,1755930731367,-898.28,0.00015616,2]
[380997805,1755930731377,-400.0,0.00015616,2]
[380997806,1755930731387,-400.0,0.00015616,2]
[380997807,1755930731396,-433.34,0.00015616,2]
[380997808,1755930731406,-400.0,0.00015616,2]
[380997809,1755930731415,-813.43,0.00015616,2]
[380997810,1755930731425,-152.259471,0.00015616,2]